Cogmind - Beta 13 @@@ ROGUE MODE // 2024.06.21 @ 21:06:04 Player: delto Result: Destroyed by G-34 Mercenary with Small Laser Performance ------------- Evolutions (0) 0 Regions Visited (2) 400 Robots Destroyed (25) 125 Value Destroyed (535) 535 Prototype IDs (0) 0 Alien Tech Used (0) 0 Bonus (0) 0 TOTAL SCORE: 1060 Bonus ------- None Cogmind --------- Core Integrity 0/250 Matter 275/300 Energy 207/250 System Corruption 0% Temperature Cool (6) Movement Rolling (100) Location -10/Mines Parts ------- > --- POWER (1) -------- Ion Engine > --- PROPULSION (2) --- Light Treads Compact Wheel > --- UTILITY (2) ------ Small Storage Unit Visual Processing Unit > --- WEAPON (2) ------- Assault Rifle > --- INVENTORY (8) ---- Ion Engine Heat Sink Large Battery (200) Seismic Detector Peak State ------------ > --- POWER ------------ Light Nuclear Core > --- PROPULSION ------- Light Treads Wheel > --- UTILITY ---------- Small Storage Unit Improved Terrain Scanner > --- WEAPON ----------- Small Laser Assault Rifle > --- INVENTORY -------- Ion Engine Ion Engine Compact Wheel Heat Sink Large Battery Visual Processing Unit Seismic Detector Assault Rifle [Rating: 11] Favorites ----------- Power Ion Engine Engine Ion Engine Power Core Light Nuclear Core Propulsion Light Treads Treads Light Treads Wheel Wheel Utility Small Storage Unit Device Improved Terrain Scanner Storage Small Storage Unit Processor Visual Processing Unit Weapon Assault Rifle Energy Gun Small Laser Ballistic Gun Assault Rifle Launcher Grenade Launcher Build | -11 -10 -10 ------- Run | Yrd Mat Min Slots Evolved . | . . . Power . | . . . Propulsion . | . . . Utility . | . . . Weapon . | . . . Parts Attached 20 | 7 6 7 Power 4 | 1 . 3 Engine 3 | 1 . 2 Core 1 | . . 1 Reactor . | . . . Propulsion 6 | 2 2 2 Treads 2 | 1 . 1 Leg . | . . . Wheel 4 | 1 2 1 Hover . | . . . Flight . | . . . Utility 4 | 2 1 1 Device 2 | 1 1 . Storage 1 | 1 . . Processor 1 | . . 1 Hackware . | . . . Protection . | . . . Artifact . | . . . Weapon 6 | 2 3 1 Energy Gun 2 | 1 1 . Energy Cannon . | . . . Ballistic Gun 3 | 1 1 1 Ballistic Cannon . | . . . Launcher 1 | . 1 . Special Weapon . | . . . Impact Weapon . | . . . Slashing Weapon . | . . . Piercing Weapon . | . . . Special Melee Weapon . | . . . Unidentified Prototypes . | . . . Parts Lost 11 | . 4 7 Power 2 | . . 2 Propulsion 4 | . 2 2 Utility 1 | . . 1 Weapon 4 | . 2 2 Highest Loss Streak 5 | . 4 5 To Critical Strikes . | . . . Average Slot Usage (%) 99 | . 99 99 Engine 12 | . 14 8 Core 2 | . . 5 Treads 14 | . 14 14 Wheel 13 | . 13 14 Device 13 | . 14 13 Storage 14 | . 14 14 Energy Gun 13 | . 14 13 Ballistic Gun 13 | . 12 14 Naked Turns . | . . . Heaviest Build 16 | 15 16 14 Greatest Support 20 | 20 20 20 Greatest Overweight (x) 1 | 1 1 . Average Overweight (x) . | . . . Largest Inventory Capacity 8 | 8 8 8 Average Capacity 7 | 7 8 8 Most Carried 8 | 8 8 8 Average Carried 6 | 4 6 7 Final Capacity 8 | 8 8 8 Final Carried 8 | 8 8 4 Class Distribution -------------------- 100% | Mutant Dominant Class ---------------- Mutant | -10/Materials Mutant | -10/Mines Resources | -11 -10 -10 ----------- Run | Yrd Mat Min Matter Collected 548 | 273 205 70 Remotely . | . . . Salvage Created 634 | 47 364 223 Parts 48 | 7 29 12 Haulers Intercepted . | . . . Recyclers Shooed . | . . . Parts Field Recycled . | . . . Retrieved Matter . | . . . Parts Self-Destructed . | . . . Prevented . | . . . Kills | -11 -10 -10 ------- Run | Yrd Mat Min Combat Hostiles Destroyed 16 | . 9 7 Guns 11 | . 4 7 AOE 5 | . 5 . Classes Destroyed 6 | 1 5 . Builder 3 | . 3 . Tunneler 2 | 2 . . Recycler 1 | . 1 . Watcher 3 | . 3 . Swarmer 6 | . 3 3 Grunt 10 | . 6 4 Best Kill Streak 10 | 1 10 3 Combat Bots Only 5 | . 5 3 Max Kills in Single Turn 3 | 1 3 1 Gunslinging . | . . . Exploded 2 | . 2 . Melee . | . . . Uniques/NPCs Destroyed . | . . . Combat | -11 -10 -10 -------- Run | Yrd Mat Min Hostile Shots Fired 105 | . 64 41 Missed 23 | . 18 5 Damage Taken 1222 | . 611 611 Core 256 | . 137 119 Absorbed by Shields . | . . . Core Remaining (%) 100 | 100 . . Volleys Fired 45 | 2 26 17 Largest 2 | 2 2 2 Hottest 80 | 70 80 60 Shots Fired 90 | 4 52 34 Gun 78 | 4 40 34 Cannon . | . . . Launcher 12 | . 12 . Special . | . . . Kinetic 33 | 2 14 17 Thermal 45 | 2 26 17 Explosive 12 | . 12 . Electromagnetic . | . . . Robot Hit Streak 9 | 3 4 9 Robot Miss Streak 3 | . 3 2 Penetration Max . | . . . Secondary Targets 1 | . 1 . Max Gunslinging Chain 1 | . 1 . Shots Hit Robots 54 | 3 27 24 Core Hits 39 | 2 23 14 Critical Kills . | . . . Critical Parts Destroyed . | . . . Critical Strikes 2 | 1 1 . Burn 2 | 1 1 . Melee Attacks . | . . . Impact . | . . . Slashing . | . . . Piercing . | . . . Sneak Attacks . | . . . Combat Hostiles . | . . . Follow-up Attacks . | . . . Damage Inflicted 1185 | 39 860 286 Guns 621 | 39 296 286 Cannons . | . . . Explosions 564 | . 564 . Melee . | . . . Ramming . | . . . Kinetic 315 | 14 146 155 Thermal 306 | 25 150 131 Explosive 564 | . 564 . Electromagnetic . | . . . Impact . | . . . Slashing . | . . . Piercing . | . . . Highest Corruption . | . . . Average Corruption . | . . . Corruption Purged . | . . . Corruption Blocked . | . . . Overload Shots . | . . . Overflow Damage . | . . . Projectiles . | . . . Explosions . | . . . Melee . | . . . Knockbacks . | . . . Impact . | . . . Kinetic . | . . . Secondary . | . . . Self-Inflicted Damage 74 | . 74 . Shots 6 | . 6 . Rammed . | . . . Targets Rammed . | . . . Kicked . | . . . Crushed . | . . . Highest Temperature 226 | 9 226 37 Average Temperature 88 | 6 117 18 Received Heat Transfer 432 | . 270 162 Siege Activations . | . . . Robots Corrupted . | . . . Combat Hostiles . | . . . Parts Fried . | . . . Impact Corruptions . | . . . Robots Melted . | . . . Combat Hostiles . | . . . Parts Melted . | . . . Heat Transferred 919 | 148 471 300 Parts Sabotaged . | . . . Parts Stolen . | . . . Parts Stripped . | . . . Power Chain Reactions . | . . . Alert | -11 -10 -10 ------- Run | Yrd Mat Min Peak Influence 291 | 10 291 185 Initial 35 | . 6 35 Average 146 | 2 161 156 Maximum Alert Level 1 | . 1 . Low Security (%) 72 | 100 55 100 Level 1 27 | . 44 . Level 2 . | . . . Level 3 . | . . . Level 4 . | . . . Level 5 . | . . . High Security . | . . . Max Security . | . . . Squads Dispatched . | . . . Investigation . | . . . Extermination . | . . . Reinforcement . | . . . Assault . | . . . Garrison . | . . . Intercept . | . . . Searches Triggered . | . . . Construction Impeded . | . . . Haulers Reinforced . | . . . Active Scanning Responses . | . . . Cargo Convoy Interrupts . | . . . Stealth | -11 -10 -10 --------- Run | Yrd Mat Min Distress Signals 1 | . 1 . Communications Jammed . | . . . Distress Signals . | . . . Times Spotted 23 | . 13 10 Peak Tracking Total 4 | . 4 4 Tactical Retreats . | . . . Traps | -11 -10 -10 ------- Run | Yrd Mat Min Traps Triggered . | . . . Indirectly . | . . . Trap Hack Attempts . | . . . Triggered . | . . . Disarmed . | . . . Reprogrammed . | . . . Reused . | . . . Traps Extracted . | . . . Installed . | . . . Triggered . | . . . Machines | -11 -10 -10 ---------- Run | Yrd Mat Min Machines Disabled . | . . . Max in Single Turn . | . . . Machines Repaired . | . . . Machines Dismantled . | . . . Machines Sabotaged . | . . . Overloaded Fab Kills . | . . . Hacking | -11 -10 -10 --------- Run | Yrd Mat Min Machines Accessed 4 | . 4 . Terminals 4 | . 4 . Fabricators . | . . . Repair Stations . | . . . Recycling Units . | . . . Scanalyzers . | . . . Garrison Access . | . . . Total Hacks 6 | . 6 . Successful 2 | . 2 . Failed 4 | . 4 . Catastrophic 1 | . 1 . Database Lockouts . | . . . Manual 4 | . 4 . Terminals 6 | . 6 . Fabricators . | . . . Repair Stations . | . . . Recycling Units . | . . . Scanalyzers . | . . . Garrison Access . | . . . Terminal Hacks 2 | . 2 . Robot Analysis 1 | . 1 . Alert Level 1 | . 1 . Fabricator Hacks . | . . . Repair Station Hacks . | . . . Recycling Unit Hacks . | . . . Scanalyzer . | . . . Garrison Access Hacks . | . . . Unauthorized Hacks . | . . . Terminals . | . . . Fabricators . | . . . Repair Stations . | . . . Recycling Units . | . . . Scanalyzers . | . . . Garrison Access . | . . . Data Cores Recovered . | . . . Used . | . . . Hacking Detections 3 | . 3 . Full Trace Events . | . . . Feedback Events . | . . . Feedback Blocked . | . . . Robot Schematics Acquired . | . . . Robots Built . | . . . Authchips . | . . . Time . | . . . Total Robot Build Rating . | . . . Part Schematics Acquired . | . . . Parts Built . | . . . Authchips . | . . . Time . | . . . Total Part Build Rating . | . . . Parts Repaired . | . . . Time . | . . . Parts Recycled . | . . . Recycled Matter . | . . . Retrieved Matter . | . . . Retrieved Components . | . . . Parts Scanalyzed . | . . . Part Schematics Acquired . | . . . Parts Damaged . | . . . Bothacking | -11 -10 -10 ------------ Run | Yrd Mat Min Used RIF Installer . | . . . Robots Hacked . | . . . Non-combat . | . . . Combat . | . . . Robot Hacks Applied . | . . . Relay Couplers Released . | . . . Fabnet Peak Effective % . | . . . Robots Rewired . | . . . Allies Hacked . | . . . Hacks Repelled . | . . . Allies | -11 -10 -10 -------- Run | Yrd Mat Min Total Allies . | . . . Largest Group . | . . . Highest-Rated Group . | . . . Highest-Rated Ally . | . . . Total Orders . | . . . Ally Attacks . | . . . Total Damage . | . . . Kills . | . . . Allies Corrupted . | . . . Allies Melted . | . . . Intel | -11 -10 -10 ------- Run | Yrd Mat Min Robot Analysis Total 1 | . 1 . Derelict Logs Recovered . | . . . Drone Launches . | . . . Drone Recoveries . | . . . Exploration | -11 -10 -10 ------------- Run | Yrd Mat Min Turns Passed 1075 | 92 654 329 Spaces Moved 624 | 72 383 169 Core 10 | 10 . . Treads 456 | 2 298 156 Legs . | . . . Wheels 158 | 60 85 13 Hover . | . . . Flight . | . . . Fastest Speed 50 | 50 95 100 Average Speed 142 | 92 145 155 Slowest Speed 160 | 160 160 160 Overloaded Moves . | . . . Propulsion Burnouts . | . . . Robots Hopped . | . . . Cave-ins Triggered . | . . . Exploration Rate (%) 35 | 4 61 40 Regions Visited 2 Branch Regions 1 Pre-discovered Areas . | . . . Known Exits Taken . | . . . Unknown Exits Taken 2 | 1 1 . Scrap Searched . | . . . Spaces Dug . | . . . Terrain Destroyed 64 | . 64 . Melee . | . . . Projectile . | . . . AOE 64 | . 64 . Terrain Rammed . | . . . Walls Destroyed . | . . . Machines Disabled . | . . . Actions | -11 -10 -10 --------- Run | Yrd Mat Min Total 718 | 90 428 200 Wait 5 | . . 5 Move 622 | 71 382 169 Hop . | . . . Pick Up 20 | 9 9 2 Fast Attach 7 | 7 . . Attach 10 | . 4 6 Detach . | . . . Swap 3 | . 2 1 Drop 6 | 1 5 . Fire 45 | 2 26 17 Melee . | . . . Ram . | . . . Kick . | . . . Crush . | . . . Escape Stasis . | . . . Rewire . | . . . Trap . | . . . Miscellaneous . | . . . Route ------- -11/Scrapyard -10/Materials (discovered 2 exits: [*Mat] / [*Min]) -10/Mines (discovered 1 exit: [*Mat]) History --------- Turn | Location | Event 18 | -11/Scrapyard | Discovered new exit (range 16) 93 | -11/Scrapyard | Entered Materials 279 | -10/Materials | Core integrity fell below 50% 290 | -10/Materials | Lost 4 parts (2n2w) 301 | -10/Materials | Build established: Mutant 477 | -10/Materials | Discovered new exit (range 11) 516 | -10/Materials | Discovered new exit (range 16) 747 | -10/Materials | Entered Mines 1014 | -10/Mines | Found a hidden stash of uninstalled traps 1052 | -10/Mines | Assembled infested the area 1063 | -10/Mines | Core integrity fell below 20% 1071 | -10/Mines | Discovered new exit (range 6) 1076 | -10/Mines | Destroyed by G-34 Mercenary with Small Laser Last Messages --------------- 00920_ Acquired 23 matter. 00923_ Acquired Lgt. Nuclear Core. 00926_ Acquired 10 matter. 00973_ K-01 Serf collects debris. 01014_ A stash of uninstalled traps is collected here! 01052_ ALERT: Infestation in the mines, dispatching Demolisher response squad. 01056_ C-30 ARC bursts open, deploying its payload. 01056_ D-53 Grenadier unfolds itself. 01058_ Imp. Terrain Scanner destroyed. 01058_ Assault Rifle destroyed. 01058_ U-05 Engineer lays Concrete. 01060_ Sml. Laser destroyed. 01060_ Wheel destroyed. 01060_ U-05 Engineer lays Concrete. 01061_ The unstable cave ceiling collapses. 01061_ U-05 Engineer lays Concrete. 01062_ Lgt. Nuclear Core destroyed. 01065_ The unstable cave ceiling collapses. 01071_ EXIT=FOUND Map ----- +----------------------------------------------------+ | ?????????????????????????????????????????????????? | | ?????????????????????????????????????????????????? | | ??????#??????????????????????????????????????????? | | ????????????????????????????????????????????????? | | ?????????????????????????????????????????????????? | | ?????????????????????????????????????????????????? | | ?????????????????????????????????????????????????? | | ?????????? ??????????????????????????????????????? | | ???????????"?????????????????????????????????????? | | ?????????????????????????????????????????????????? | | ???????????? ????????????????????????????????????? | | ####?????????????????????????????????????????????? | | ####?????????????##???????????????????????????? | | ##?????????????????????????????????????????? | | #########?????????????????????????????????? | | ## #####?????????????????????????????? | | ##??????????###???????????????? | | ##??#???? ???????????????? | | #### ###### ???????????????? | | ###?## " #???????????????????? | | #????## ## "%"#???????????????????? | | #????##### #### ###???????????????????? | | ##????????# #### #?????????????????????? | | ##?????##??## # #?????????????????????? | | ???#????????## # ##### ##????????????????????? | | ?????????????### # #### @< #????????????????????? | | ???????????????### #### g #????????????????????? | | ??#??????????????# g #????????????????????? | | ?????????????????###### """ #????????????????????? | | ??????????????????????# """ #????????????????????? | | ????????#?????????????# """ #????????????????????? | | ??????????????????????#######????????????????????? | | ?????????????????????????????????????????????????? | | ?????????????????????????????????????????????????? | | | | | | | | | | | | | | | | | | | | | | | | | | | | | | | | | +----------------------------------------------------+ Best States ------------- Heat Dissipation 25 Energy Generation 14 Energy Capacity 250 Matter Stores 300 Matter Capacity 300 Sight Range 18 Terrain Scan Range 16 Terrain Scan Density 10 Evasion (%) 44 Recoil Reduction 1 Item Schematics ----------------- None Robot Schematics ------------------ None Fabricated ------------ Nothing Alien Tech Used ----------------- None Achievements -------------- None Challenges ------------ None Game ------ Seed CorePhaseTriangulator Manual? 0 Play Time 00:12:26 Cumulative 47.0 hours Start 2024.06.21 @ 20:55:56 End 2024.06.21 @ 21:06:04 Sessions 1 Manual Loads 0 Difficulty Rogue Special Mode None Game No. 58 Rogue 58 Adventurer 0 Explorer 0 Win Type - Total 0 Types 0/0/0/0/0/0/0/0/0 Lore% 16 Gallery% 37 Achievement% 27 Wizard Run 0 Options --------- Layout 0 ASCII 0 Keyboard 0 Movement Mouse Keybinds 0 Fullscreen 1 Font 24/Smallcaps Map View 76x50 Zoom Use 0% Tactical HUD 1 Map Filters NONE Filters NONE Steam 1 RUN: 4126a8b4-6321-45f5-82a0-eb327a485ca1